Workbook

Sheet F2 lengkap
K1: FORM 2
A2: PERUMUSAN NAMA JABATAN
A3: SKPD | D3: : KELURAHAN SUMBERREJO
A4: UNIT KERJA | D4: :
A6: NO | B6: URAIAN TUGAS DAN | E6: HASIL KERJA | F6: VOL | G6: SATUAN | H6: WAKTU (MENIT) | I6: BEBAN KERJA | J6: NAMA JABATAN | K6: KET
B7: TAHAPAN
A8: 1 | B8: 2 | E8: 3 | F8: 4 | G8: 5 | H8: 6 | I8: 7 | J8: 8 | K8: 9
A10: I.1 | B10: KONSEPTUAL DAN MANAGERIAL (ESELON 4) | J10: Lurah
B11: 1 | C11: Merencanakan kegiatan Lurah sesuai program kerja Lurah dan ketentuan yang berlaku untuk pedoman pelaksanaan tugas. | E11: Program Kerja | F11: 1 | G11: dokumen | I11: =SUM(I12:I16) -> 420
C12: 1) | D12: Mempelajari pedoman pelaksanaan tugas. | F12: 1 | H12: 60 | I12: =F12*H12 -> 60
C13: 2) | D13: Menelaah Program Kerja Lurah | F13: 1 | H13: 120 | I13: =F13*H13 -> 120
C14: 3) | D14: Menyusun konsep rencana kegiatan Lurah | F14: 1 | H14: 120 | I14: 120
C15: 4) | D15: Mengkonsultasikan konsep rencana kegiatan dengan pimpinan untuk mendapatkan pengarahan; | F15: 1 | H15: 60 | I15: 60
C16: 5) | D16: Menetapkan rencana kegiatanLurah | F16: 1 | H16: 60 | I16: 60
B18: 2 | C18: Membagi tugas kepada bawahan di lingkungan Kelurahan sesuai dengan beban kerja dan tanggung jawab masing-masing untuk kelancaran pelaksanaan tugas. | E18: Distribusi Tugas | F18: 12 | G18: dokumen | I18: =SUM(I19:I23) -> 2400
C19: 1) | D19: Menjabarkan rencana kegiatan menjadi tugas-tugas yang harus dilaksanakan bawahan; | F19: 1 | H19: 120 | I19: 120
C20: 2) | D20: Memaparkan rencana kegiatanLurah | F20: 1 | H20: 120 | I20: 120
C21: 3) | D21: Menghimpun saran dan masukan dari bawahan; | F21: 12 | H21: 60 | I21: 720
C22: 4) | D22: Memberikan petunjuk pelaksanaan tugas kepada bawahan; | F22: 12 | H22: 60 | I22: 720
C23: 5) | D23: Menentukan target waktu penyelesaian. | F23: 12 | H23: 60 | I23: 720
B25: 3 | C25: Memberi petunjuk, membimbing dan mengkoordinasikan pelaksanaan tugas bawahan di lingkungan Kelurahan setiap saat sesuai dengan tugas dan tanggung jawabnya agar pekerjaan berjalan tertib dan lancar. | E25: Kegiatan Bimbingan dan Koordinasi | F25: 12 | G25: kali | I25: =SUM(I26:I29) -> 1800
C26: 1) | D26: Menjelaskan tugas yang akan dilaksanakan bawahan; | F26: 12 | H26: 30 | I26: 360
C27: 2) | D27: Mengidentifikasi kesulitan yang dialami bawahan; | F27: 12 | H27: 30 | I27: 360
C28: 3) | D28: Menganalisis permasalahan bersama pimpinan untuk menentukan solusi terbaik; | F28: 12 | H28: 60 | I28: 720
C29: 4) | D29: Memberikan arahan kepada bawahan terkait permasalahan yang dialami. | F29: 12 | H29: 30 | I29: 360
B31: 4 | C31: Memeriksa hasil kerja bawahan di lingkungan Kelurahan sesuai dengan prosedur dan peraturan yang berlaku agar terhindar dari kesalahan. | E31: Kegiatan Pemeriksaan | F31: 12 | G31: kali | I31: =SUM(I32:I36) -> 1860
C32: 1) | D32: Menelaah hasil kerja yang dilakukan bawahan; | F32: 12 | H32: 30 | I32: 360
C33: 2) | D33: Menentukan standar kualitas dan/atau kuantitas hasil kerja; | F33: 1 | H33: 60 | I33: 60
C34: 3) | D34: Mengidentifikasi kesalahan dalam hasil kerja sesuai dengan prosedur yang telah ditentukan; | F34: 12 | H34: 30 | I34: 360
C35: 4) | D35: Membuat koreksi pada hasil kerja berupa catatan tertulis; | F35: 12 | H35: 30 | I35: 360
C36: 5) | D36: Memberikan arahan terkait koreksi hasil kerja bawahan. | F36: 12 | H36: 60 | I36: 720
B38: 5 | C38: Melaksanakan kegiatan pemerintahan kelurahan | E38: Kegiatan Peningkatan Kinerja | F38: =SUM(F40:F49) -> 150 | G38: kali | I38: =SUM(I39:I49) -> 20040
C39: 1) | D39: Mempelajari pedoman pelaksaaan tugas. | F39: 8 | H39: 30 | I39: 240
C40: 2) | D40: Mengarahkan perencanaan kegiatan Sekretariat dan masing-masing seksi | F40: 12 | H40: 180 | I40: 2160
C41: 3) | D41: Melaksanakan pembinaan PNS di Lingkungan Kelurahan | F41: 12 | H41: 120 | I41: 1440
C42: 4) | D42: Mengarahkan pengelolaan surat menyurat, kearsipan, dokumentasi produk hukum, keuangan, kerumahtanggaan, perlengkapan dan pengelolaan kepegawaian. | F42: 24 | H42: 120 | I42: 2880
C43: 5) | D43: Mengarahkan perencanaan, pelaksanaan dan pelaporan Musyawarah Perencanaan Pembangunan Kelurahan (Musrenbangkel) | F43: 6 | H43: 240 | I43: 1440
C44: 6) | D44: Mengarahkan pengelolaan Administrasi Pertanahan dan Perpajakan | F44: 24 | H44: 120 | I44: 2880
C45: 7) | D45: Mengarahkan pengelolaan Administrasi Kependudukan dan Catatan Sipil | F45: 24 | H45: 120 | I45: 2880
C46: 8) | D46: Mengarahkan penyusunan Data Dasar Keluarga, Data Dasar Potensi Sumber Daya Alam, Data Dasar Potensi Sumber Daya Manusia, Data Dasar Potensi Sumber Daya Kelembagaan, dan Data Dasar Sarana Prasarana Kelurahan | F46: 24 | H46: 120 | I46: 2880
C47: 9) | D47: Mengarahkan penyusunan Profil Kelurahan | F47: 6 | H47: 180 | I47: 1080
C48: 10) | D48: Mengarahkan penyusunan Buku-buku Administrasi Kelurahan | F48: 6 | H48: 120 | I48: 720
C49: 11) | D49: Mengevaluasi kegiatan pemerintahan kelurahan | F49: 12 | H49: 120 | I49: =F49*H49 -> 1440
B52: 6 | C52: Memberdayakan masyarakat | E52: Kegiatan Peningkatan partisipasi masyarakat | F52: 12 | G52: kali | I52: =SUM(I53:I58) -> 6060
C53: 1) | D53: Mempelajari pedoman pelaksaaan tugas. | F53: 2 | H53: 30 | I53: 60
C54: 2) | D54: Merencanakan kegiatan pemberdayaan masyarakat | F54: 2 | H54: 120 | I54: 240
C55: 3) | D55: Mendorong partisipasi dan kegotong royongan masyarakat | F55: 12 | H55: 180 | I55: 2160
C56: 4) | D56: Mendorong partisipasi masyarakat untuk ikut serta dalam Forum Penggalian Gagasan dan Musrenbang Kelurahan | F56: 12 | H56: 180 | I56: =F56*H56 -> 2160
C57: 5) | D57: Memonitor kegiatan pemberdayaan masyarakat | F57: 12 | H57: 60 | I57: =F57*H57 -> 720
C58: 6) | D58: Mengevaluasi kegiatan pemberdayaan masyarakat | F58: 12 | H58: 60 | I58: 720
B60: 7 | C60: Menyelenggarakan pelayanan masyarakat sesuai dengan ruang lingkup tugasnya. | E60: Kegiatan Pelayanan masyarakat | F60: 268 | G60: hari | I60: =SUM(I61:I65) -> 19380
C61: 1) | D61: Mempelajari pedoman pelaksaaan tugas. | F61: 2 | H61: 30 | I61: 60
C62: 2) | D62: Mengarahkan perencanaan dan penyelenggaraan pelayanan masyarakat, antara lain : rekomendasi, perizinan, surat keterangan, surat pengantar, legalisasi, pelayanan kependudukan dan catatan sipil | F62: 14 | H62: 180 | I62: 2520
C63: 3) | D63: Menyelenggarakan pelayanan masyarakat | F63: 268 | H63: 30 | I63: 8040
C64: 4) | D64: Memonitor kegiatan pelayanan masyarakat | F64: 268 | H64: 30 | I64: 8040
C65: 5) | D65: Mengevaluasi kegiatan pelayanan masyarakat | F65: 12 | H65: 60 | I65: 720
B67: 8 | C67: Menyelenggarakan ketentraman dan ketertiban | E67: Kegiatan Peningkatan ketentraman dan ketertiban | F67: =SUM(F69:F76) -> 96 | G67: kali | I67: =SUM(I68:I76) -> 10890
C68: 1) | D68: Mempelajari pedoman pelaksaaan tugas. | F68: 3 | H68: 30 | I68: 90
C69: 2) | D69: Mengarahkan perencanaan dan penyelenggaraan keteentraman dan ketertiban umum di wilayah kerja kelurahan | F69: 12 | H69: 120 | I69: 1440
C70: 3) | D70: Menggerakkan kegiatan kesejahteraan rakyat, antara lain di bidang agama, pendidikan, kesehatan, ketenagakerjaan, bantuan sosial, penanganan masalah kesejahteraan sosial dan penanggulangan kemiskinan. | F70: 12 | H70: 120 | I70: 1440
C71: 4) | D71: Melaksanakan koordinasi ke atas dengan Camat, Kepolisian Sektor (Polsek) dan / atau Komando Rayon Militer (KORAMIL) mengenai program dan kegiatan penyelenggaraan ketentraman dan ketertiban umum di wilayah kerja kelurahan. | F71: 12 | H71: 120 | I71: 1440
C72: 5) | D72: Menjalin komunikasi yang intensif dengan tokoh masyarakat / pemuka agama yang berada di wilayah kerja kelurahan untuk mewujudkan ketentraman dan ketertiban umum masyarakat di wilayah kerja kelurahan | F72: 12 | H72: 120 | I72: 1440
C73: 6) | D73: Melaksanakan koordinasi teknis dengan Satuan Polisi Pamong Praja mengenai penegakan Peraturan Daerah, Peraturan Bupati dan Keputusan Bupati | F73: 12 | H73: 120 | I73: 1440
C74: 7) | D74: Melaksanakan koordinasi teknis dengan Camat, Satuan Polisi Pamong Praja, Polsek dan / atau Koramil mengenai penanggulangan penyakit masyarakat | F74: 12 | H74: 120 | I74: 1440
C75: 8) | D75: Melaksanakan pemantauan terhadap hal-hal yang memungkinkan terjadinya gangguan ketentraman dan ketertiban umum. | F75: 12 | H75: 120 | I75: 1440
C76: 9) | D76: Melaporkan penyelenggaraan ketentraman dan ketertiban kepada atasan | F76: 12 | H76: 60 | I76: 720
B78: 9 | C78: Menyelenggarakan pemeliharaan prasarana dan fasilitas pelayanan umum | E78: Data aset | F78: 12 | G78: kali | I78: =SUM(I79:I84) -> 3030
C79: 1) | D79: Mempelajari pedoman pelaksaaan tugas. | F79: 1 | H79: 30 | I79: 30
C80: 2) | D80: Merencanakan kegiatan pemeliharaan prasarana dan fasilitas pelayanan umum | F80: 1 | H80: 120 | I80: 120
C81: 3) | D81: Mengkoordinasikan data prasarana dan fasilitas pelayanan umum | F81: 12 | H81: 60 | I81: 720
C82: 4) | D82: Memantau aset aset prasarana dan fasilitas pelayanan umum | F82: 12 | H82: 60 | I82: =F82*H82 -> 720
C83: 5) | D83: Melaporkan kegiatan pemeliharaan prasarana dan fasilitas pelayanan umum kepada atasan | F83: 12 | H83: 60 | I83: 720
C84: 6) | D84: Mengevaluasi kegiatan pemeliharaan prasarana dan fasilitas pelayanan umum | F84: 12 | H84: 60 | I84: 720
B86: 10 | C86: Membina lembaga kemasyarakatan kelurahan | E86: Kegiatan Peningkatan Kinerja Kelembagaan | F86: 4 | G86: kali | I86: =SUM(I87:I91) -> 1470
C87: 1) | D87: Mempelajari pedoman pelaksaaan tugas. | F87: 1 | H87: 30 | I87: =F87*H87 -> 30
C88: 2) | D88: Mengarahkan perencanaan dalam pembinaan lembaga kemasyarakatan kelurahan | F88: 4 | H88: 60 | I88: 240
C89: 3) | D89: Melaksanakan pembinaan lembaga kemasyarakatan kelurahan, antara lain : LMPK, LPPK, Karang Taruna, RW, RT dan lain-lain | F89: 4 | H89: 180 | I89: 720
C90: 4) | D90: Melaporkan hasil kegiatan pembinaan lembaga kemasyarakatn kepada atasan | F90: 4 | H90: 60 | I90: 240
C91: 5) | D91: Mengevaluasi kegiatan pembinaan lembaga kemasyarakatan | F91: 4 | H91: 60 | I91: 240
B93: 11 | C93: Melaksanakan kewenangan pemerintahan yang dilimpahkan oleh Bupati | E93: Kegiatan Optimalisasi Penerimaan Negara | F93: 48 | G93: kali | I93: =SUM(I94:I96) -> 8700
C94: 1) | D94: Mempelajari pedoman pelaksaaan tugas. | F94: 2 | H94: 30 | I94: 60
C95: 2) | D95: Mengarahkan perencanaan dan pelaksanakan kegiatan ( pemungutan Pajak Bumi dan Bangunan ) | F95: 24 | H95: 240 | I95: 5760
C96: 3) | D96: Mengarahkan perencanaan dan pelaksanakan kegiatan ( pelayanan administrasi pertanahan ) | F96: 24 | H96: 120 | I96: 2880
B98: 12 | C98: Mengevaluasi dan melaporkan penyelenggaraan urusan pemerintahan, pembangunan dan kemasyarakatan di kelurahan dan melaksanakan urusan pemerintahan yang dilimpahkan oleh Bupati | E98: Laporan kegiatan | F98: 12 | G98: kali | I98: =SUM(I99:I105) -> 9480
C99: 1) | D99: Mempelajari pedoman pelaksaaan tugas. | F99: 4 | H99: 30 | I99: 120
C100: 2) | D100: Merencanakan evaluasi dan pelaporan kegiatan | F100: 12 | H100: 120 | I100: 1440
C101: 2) | D101: Melaksanakan evaluasi dan pelaporan penyelenggaraan tugas bidang kesekretariatan | F101: 12 | H101: 120 | I101: 1440
C102: 3) | D102: Melaksanakan evaluasi dan pelaporan penyelenggaraan bidang pemerintahan kelurahan dan pelayanan masyarakat | F102: 12 | H102: 120 | I102: 1440
C103: 4) | D103: Melaksanakan evaluasi dan pelaporan penyelenggaraan bidang pemberdayaan masyarakat dan pemeliharaan prasarana / fasilitas pelayanan umum | F103: 12 | H103: 120 | I103: 1440
C104: 5) | D104: Melaksanakan evaluasi dan pelaporan penyelenggaraan ketentraman, ketertiban umum dan kesejahteraan rakyat. | F104: 12 | H104: 240 | I104: 2880
C105: 6) | D105: Melaporkan hasil kegiatan evaluasi kepada atasan | F105: 12 | H105: 60 | I105: 720
B107: 13 | C107: Mengevaluasi pelaksanaan tugas di lingkungan Kelurahan dengan cara mengidentifikasi hambatan yang ada dalam rangka perbaikan kinerja di masa mendatang. | E107: Kegiatan evaluasi | F107: 12 | G107: kali | I107: =SUM(I108:I111) -> 2160
C108: 1) | D108: Menentukan target kerja sesuai dengan rencana kegiatan; | F108: 12 | H108: 30 | I108: 360
C109: 2) | D109: Mempelajari laporan pelaksanaan kegiatan bawahan; | F109: 12 | H109: 60 | I109: 720
C110: 3) | D110: Mendiskusikan kemajuan pelaksanaan kegiatan dengan bawahan; | F110: 12 | H110: 60 | I110: 720
C111: 4) | D111: Memberikan langkah-langkah perbaikan dalam pelaksanaan kegiatan. | F111: 12 | H111: 30 | I111: 360
B113: 14 | C113: Menyusun laporan pelaksanaan kegiatan di lingkungan Kelurahan sesuai prosedur dan peraturan yang berlaku untuk pertanggungjawaban kinerja dan rencana yang akan datang. | E113: Laporan Pelaksa naan Kegiatan | F113: 12 | G113: dokumen | I113: =SUM(I114:I118) -> 3960
C114: 1) | D114: Menganalisis laporan yang diterima dari bawahan; | F114: 12 | H114: 60 | I114: 720
C115: 2) | D115: Membahas bahan laporan; | F115: 12 | H115: 60 | I115: 720
C116: 3) | D116: Membuat konsep laporan hasil pelaksanaan tugas; | F116: 12 | H116: 60 | I116: 720
C117: 4) | D117: Mengkonsultasikan konsep laporan kepada atasan; | F117: 12 | H117: 30 | I117: 360
C118: 5) | D118: Memfinalisasi laporan pelaksanaan tugas. | F118: 12 | H118: 120 | I118: 1440
B120: 15 | C120: Melaksanakan tugas kedinasan lain yang diperintahkan oleh pimpinan baik lisan maupun tertulis. | E120: Kegiatan tugas | F120: 48 | G120: kali | I120: =SUM(I121:I123) -> 7230
C121: 1) | D121: Mempelajari tugas; | E121: kedinasan lain | F121: 1 | H121: 30 | I121: 30
C122: 2) | D122: Menjalankan tugas; | F122: 48 | H122: 120 | I122: 5760
C123: 3) | D123: Melaporkan hasil pelaksanaan tugas. | F123: 48 | H123: 30 | I123: 1440
B125: J U M L A H | I125: =I11+I18+I25+I31+I38+I52+I60+I67+I78+I86+I93+I98+I107+I113+I120 -> 98880
A126: I.1 | B126: KONSEPTUAL DAN MANAGERIAL (ESELON 4) | J126: Sekretaris
B127: 1 | C127: Merencanakan kegiatan Sekretaris Lurah sesuai program kerja Sekretaris Lurah dan ketentuan yang berlaku untuk pedoman pelaksanaan tugas. | E127: Program Kerja | F127: 1 | G127: dokumen | I127: 420 | J127: Lurah
C128: 1) | D128: Mempelajari pedoman pelaksanaan tugas. | F128: 1 | H128: 60 | I128: =F128*H128 -> 60
C129: 2) | D129: Menelaah Program Keerja Sekretaris Lurah | F129: 1 | H129: 120 | I129: =F129*H129 -> 120
C130: 3) | D130: Menyusun konsep rencana kegiatan Sekretaris Lurah | F130: 1 | H130: 120 | I130: 120
C131: 4) | D131: Mengkonsultasikan konsep rencana kegiatan dengan pimpinan untuk mendapatkan pengarahan; | F131: 1 | H131: 60 | I131: 60
C132: 5) | D132: Menetapkan rencana kegiatan Sekretaris Lurah | F132: 1 | H132: 60 | I132: 60
B134: 2 | C134: Membagi tugas kepada bawahan di lingkungan Sekretaris Lurah sesuai dengan beban kerja dan tanggung jawab masing-masing untuk kelancaran pelaksanaan tugas. | E134: Distribusi Tugas | F134: 12 | G134: dokumen | I134: 2400
C135: 1) | D135: Menjabarkan rencana kegiatan menjadi tugas-tugas yang harus dilaksanakan bawahan; | F135: 1 | H135: 120 | I135: 120
C136: 2) | D136: Memaparkan rencana kegiatan Sekretaris Lurah | F136: 1 | H136: 120 | I136: 120
C137: 3) | D137: Menghimpun saran dan masukan dari bawahan; | F137: 12 | H137: 60 | I137: 720
C138: 4) | D138: Memberikan petunjuk pelaksanaan tugas kepada bawahan; | F138: 12 | H138: 60 | I138: 720
C139: 5) | D139: Menentukan target waktu penyelesaian. | F139: 12 | H139: 60 | I139: 720
B141: 3 | C141: Memberi petunjuk, membimbing dan mengkoordinasikan pelaksanaan tugas bawahan di lingkungan Sekretaris Lurah setiap saat sesuai dengan tugas dan tanggung jawabnya agar pekerjaan berjalan tertib dan lancar. | E141: Kegiatan Bimbingan | F141: 12 | G141: kali | I141: 2160
C142: 1) | D142: Menjelaskan tugas yang akan dilaksanakan bawahan; | F142: 12 | H142: 30 | I142: 360
C143: 2) | D143: Mengidentifikasi kesulitan yang dialami bawahan; | F143: 12 | H143: 30 | I143: 360
C144: 3) | D144: Menganalisis permasalahan bersama pimpinan untuk menentukan solusi terbaik; | F144: 12 | H144: 60 | I144: 720
C145: 4) | D145: Memberikan arahan kepada bawahan terkait permasalahan yang dialami. | F145: 12 | H145: 60 | I145: 720
B147: 4 | C147: Memeriksa hasil kerja bawahan di lingkungan Sekretaris Lurah sesuai dengan prosedur dan peraturan yang berlaku agar terhindar dari kesalahan. | E147: Kegiatan Pemeriksaan | F147: 12 | G147: kali | I147: 2220
C148: 1) | D148: Menelaah hasil kerja yang dilakukan bawahan; | F148: 12 | H148: 60 | I148: 720
C149: 2) | D149: Menentukan standar kualitas dan/atau kuantitas hasil kerja; | F149: 1 | H149: 60 | I149: 60
C150: 3) | D150: Mengidentifikasi kesalahan dalam hasil kerja sesuai dengan prosedur yang telah ditentukan; | F150: 12 | H150: 30 | I150: 360
C151: 4) | D151: Membuat koreksi pada hasil kerja berupa catatan tertulis; | F151: 12 | H151: 30 | I151: 360
C152: 5) | D152: Memberikan arahan terkait koreksi hasil kerja bawahan. | F152: 12 | H152: 60 | I152: 720
B154: 5 | C154: Mengkoordinasikan perencanaan kegiatan-kegiatan masing-masing Seksi | E154: Kegiatan Sinkronisasi tugas | F154: 12 | G154: kali | I154: =SUM(I155:I159) -> 5250
C155: 1) | D155: Mempelajari pedoman pelaksaaan tugas. | F155: 1 | H155: 30 | I155: 30
C156: 2) | D156: Mengoordinasi perencanaan kegiatan masing masing seksi | F156: 12 | H156: 180 | I156: 2160
C157: 3) | D157: Menyusun perencanaan masing masing seksi | F157: 12 | H157: 180 | I157: 2160
C158: 4) | D158: Melaporkan rencana kegiatan masing masing seksi kepada atasan | F158: 12 | H158: 60 | I158: 720
C159: 5) | D159: Mengoordinasi pembentukan Tim Pelaksana kegiatan | F159: 1 | H159: 180 | I159: 180
B161: 6 | C161: Mengkoordinasikan perencanaan, pelaksanaan dan pemantauan hasil musyawarah perencanaan pembangunan (musrenbang) kelurahan. | E161: Kegiatan sinkronisasi tugas | F161: =SUM(F163:F169) -> 12 | G161: kegiatan | I161: =SUM(I162:I169) -> 1590
C162: 1) | D162: Mempelajari pedoman pelaksaaan tugas. | F162: 1 | H162: 30 | I162: 30
C163: 2) | D163: Merencanakan kegiatan Musrenbangkel | F163: 1 | H163: 180 | I163: 180
C164: 3) | D164: Menyiapkan bahan/data untuk perencanaan musrenbangkel | F164: 1 | H164: 180 | I164: 180
C165: 4) | D165: Melaksanakan sosialisasi pelaksanaan Musrenbang Kelurahan | F165: 1 | H165: 240 | I165: 240
C166: 5) | D166: Mengkoordinasi Pelaksanaan Musrenbang Kelurahan | F166: 6 | H166: 90 | I166: 540
C167: 6) | D167: Mengkoordinasi pemantauan hasil musrenbangkel | F167: 1 | H167: 120 | I167: 120
C168: 7) | D168: Menyusun laporan hasil musrenbangkel | F168: 1 | H168: 240 | I168: 240
C169: 8) | D169: Melaporkan hasil kegiatan musrenbangkel kepada atasan | F169: 1 | H169: 60 | I169: 60
B171: 7 | C171: Mengkoordinasikan monitoring dan evaluasi kegiatan masing-masing Seksi | E171: Kegiatan evaluasi | F171: 12 | G171: kali | I171: =SUM(I172:I176) -> 5430
C172: 1) | D172: Mempelajari pedoman pelaksaaan tugas. | F172: 1 | H172: 30 | I172: 30
C173: 2) | D173: Merencanakan kegiatan monitoring dan evaluasi kegiatan masing masing seksi | F173: 12 | H173: 90 | I173: 1080
C174: 3) | D174: Melaksanakan monitoring dan evaluasi | F174: 12 | H174: 180 | I174: 2160
C175: 4) | D175: Menyusun laporan kegiatan monitoring dan evaluasi | F175: 12 | H175: 120 | I175: 1440
C176: 5) | D176: Melaporkan hasil monitoring dan evaluasi kepada atasan | F176: 12 | H176: 60 | I176: 720
B178: 8 | C178: Mengkoordinasikan penyusunan laporan-laporan yang dibutuhkan | E178: Laporan kegiatan | F178: 12 | G178: kali | I178: =SUM(I179:I182) -> 4350
C179: 1) | D179: Mempelajari pedoman pelaksaaan tugas. | F179: 1 | H179: 30 | I179: 30
C180: 2) | D180: Mengkoordinir penyusunan Laporan laporan | F180: 12 | H180: 120 | I180: 1440
C181: 3) | D181: Menyusun laporan kegiatan | F181: 12 | H181: 180 | I181: 2160
C182: 4) | D182: Melaporkan hasil kegiatan kepada atasan | F182: 12 | H182: 60 | I182: 720
B184: 9 | C184: Menyusun rencana anggaran dan melaksanakan pengelolaan administrasi keuangan. | E184: Kegiatan administrasi keuangan | F184: =SUM(F186:F194) -> 78 | G184: kegiatan | I184: =SUM(I185:I194) -> 11700
C185: 1) | D185: Mempelajari pedoman pelaksaaan tugas. | F185: 1 | H185: 60 | I185: 60
C186: 2) | D186: Memberi petunjuk pembuatan rencana anggaran dan pengelolaan administrasi keuangan | F186: 2 | H186: 120 | I186: 240
C187: 3) | D187: Mengkoordinasi Penyusunan RKA-SKPD | F187: 2 | H187: 720 | I187: 1440
C188: 4) | D188: Mengkoordinasi Penyusunan DPA-SKPD dan DPPA - SKPD | F188: 2 | H188: 120 | I188: 240
C189: 5) | D189: Mengkoordinasikan pembuatan Surat Permintaan Pembayaran (SPP) Uang Persediaan (UP), Ganti Uang (GU), Langsung (LS) baik Belanja Langsung maupun Belanja Tidak Langsung. | F189: 12 | H189: 150 | I189: 1800
C190: 6) | D190: Memverifikasi (SPP) Uang Persediaan (UP), Ganti Uang (GU), Langsung (LS) baik Belanja Langsung maupun Belanja Tidak Langsung dan bukti-bukti pertanggungjawaban keuangan. | F190: 12 | H190: 120 | I190: 1440
C191: 7) | D191: Mengkoordinir penyusunan laporan SPJ Administrasi dan SPJ Fungsional sebagai input penyusunan laporan realisasi APBD. | F191: 12 | H191: 180 | I191: 2160
C192: 8) | D192: Mengkoordinir penyusunan laporan keuangan dan akutansi (jurnal umum, jurnal pembalik, buku besar, neraca, neraca saldo dan buku kas umum) | F192: 12 | H192: 180 | I192: 2160
C193: 9) | D193: Memonitor pelaksanaan pengelolaan administrasi keuangan | F193: 12 | H193: 60 | I193: 720
C194: 10) | D194: Melaporkan hasil monitoring pengelolaan administrasi keuangan kepada atasan | F194: 12 | H194: 120 | I194: 1440
B196: 10 | C196: Mengkoordinasikan pengelolaan surat menyurat dan kearsipan | E196: Distribusi surat | F196: 1000 | G196: Kali | I196: =SUM(I197:I204) -> 21290
C197: 1) | D197: Mempelajari pedoman pelaksaaan tugas. | F197: 1 | H197: 30 | I197: =F197*H197 -> 30
C198: 2) | D198: Merencanakan kegiatan pengelolaan surat menyurat dan kearsipan | F198: 2 | H198: 60 | I198: 120
C199: 3) | D199: Memberikan petunjuk pelaksanaan tugas | F199: 12 | H199: 30 | I199: 360
C200: 4) | D200: Melaksanakan pengelolaan surat masuk | F200: 400 | H200: 20 | I200: 8000
C201: 5) | D201: Meneliti surat / naskah dinas keluar | F201: 600 | H201: 20 | I201: 12000
C202: 6) | D202: Memberi petunjuk pengelolaan kearsipan | F202: 2 | H202: 90 | I202: 180
C203: 7) | D203: Menyusun laporan pengelolaan surat menyurat dan kearsipan | F203: 2 | H203: 240 | I203: 480
C204: 8) | D204: Melaporkan hasil pengelolaan surat menyurat dan kearsipan kepada atasan | F204: 2 | H204: 60 | I204: 120
B206: 11 | C206: Mengkoordinasikan pengelolaan dokumentasi produk hukum dan kegiatan | E206: Kegiatan pengelolaan | F206: 12 | G206: kali | I206: =SUM(I207:I211) -> 1140
C207: 1) | D207: Mempelajari pedoman pelaksaaan tugas. | E207: dokumentasi | F207: 1 | H207: 60 | I207: 60
C208: 2) | D208: Mengkoordinasi pengelolaan dokumentasi dan informasi hukum | F208: 2 | H208: 60 | I208: 120
C209: 3) | D209: Menyiapkan bahan hukum yang akan digunakan | F209: 12 | H209: 30 | I209: 360
C210: 4) | D210: Menyusun laporan kegiatan pengelolaan dokumentasi dan informasi hukum | F210: 4 | H210: 90 | I210: 360
C211: 5) | D211: Melaporkan kegiatan pengelolaan dokumentasi dan informasi hukum kepada atasan | F211: 4 | H211: 60 | I211: 240
B213: 12 | C213: Menyusun rencana kebutuhan dan melaksanakan pengelolaan barang dan perlengkapan dan rumah tangga. | E213: Kegiatan pengelolaan barang | F213: =SUM(F215:F223) -> 59 | G213: kegiatan | I213: =SUM(I214:I223) -> 3930
C214: 1) | D214: Mempelajari pedoman pelaksaaan tugas. | F214: 1 | H214: 30 | I214: 30
C215: 2) | D215: Menyusun perencanaan kebutuhan barang inventaris | F215: 1 | H215: 120 | I215: 120
C216: 3) | D216: Mengarahkan pengadaan barang barang inventaris | F216: 12 | H216: 60 | I216: 720
C217: 4) | D217: Memonitor pengadaan barang barang inventaris | F217: 12 | H217: 60 | I217: 720
C218: 5) | D218: Memonitor penerimaan barang, dan pencatatan dalam buku inventaris barang dan Kartu Inventaris Barang | F218: 12 | H218: 60 | I218: 720
C219: 6) | D219: Memonitor pendistribusian barang persediaan kepada unit-unit yang membutuhkan | F219: 12 | H219: 60 | I219: =F219*H219 -> 720
C220: 7) | D220: Memverifikasi penyusunan Rekapitulasi Daftar Barang Daerah | F220: 1 | H220: 120 | I220: =F220*H220 -> 120
C221: 8) | D221: Memverifikasi usulan penghapusan barang daerah | F221: 1 | H221: 60 | I221: 60
C222: 9) | D222: Menyusun laporan pengelolaan barang inventaris | F222: 4 | H222: 120 | I222: 480
C223: 10) | D223: Melaporkan pengelolaan barang inventaris kepada atasan | F223: 4 | H223: 60 | I223: 240
B225: 13 | C225: Mengkoordinasikan pengelolaan administrasi kepegawaian dan pengembangan sumber daya manusia | E225: Kegiatan pengelolaan kepegawaian | F225: =SUM(F227:F239) -> 340 | G225: kegiatan | I225: =SUM(I226:I239) -> 6805
C226: 1) | D226: Mempelajari pedoman pelaksaaan tugas. | F226: 1 | H226: 30 | I226: 30
C227: 2) | D227: Merencanakan kegiatan pengelolaan administrasi kepegawaian dan pengembangan sumber daya manusia | F227: 12 | H227: 30 | I227: 360
C228: 3) | D228: Mengkoordinasikan pelaksanaan apel dan absensi (daftar hadir) PNS | F228: 12 | H228: 60 | I228: 720
C229: 4) | D229: Memonitor pelaksanaan apel PNS | F229: 268 | H229: 10 | I229: 2680
C230: 5) | D230: Menyusun laporan kehadiran (absensi) PNS | F230: 12 | H230: 60 | I230: 720
... 1136 more rows
